fUSD/lending_fUSD_20250113
["ID","MTS","AMOUNT","RATE_DAILY","PERIOD"]
[348806674,1736789470032,-500.0,0.00011367,2]
[348806675,1736789470043,-548.55,0.00011367,2]
[348806676,1736789470055,-582.33,0.00011367,2]
[348806677,1736789470065,-500.0,0.00011367,2]
[348806678,1736789470076,-500.0,0.00011367,2]
[348806679,1736789470087,-500.0,0.00011367,2]
[348806680,1736789470097,-500.0,0.00011367,2]
[348806681,1736789470109,-917.73,0.00011367,2]
[348806682,1736789470119,-500.0,0.00011367,2]
[348806683,1736789470129,-618.14,0.00011367,2]
[348806684,1736789470139,-224.62,0.00011367,2]
[348806685,1736789470149,-650.64,0.00011367,2]
[348806686,1736789470159,-1418.5,0.00011367,2]
[348806687,1736789470173,-500.0,0.00011367,2]
[348806688,1736789470184,-500.0,0.00011367,2]
[348806689,1736789470347,-500.0,0.00011367,2]
[348806690,1736789470358,-500.0,0.00011367,2]
[348806691,1736789470368,-742.14,0.00011367,2]
[348806692,1736789470378,-504.42,0.00011367,2]
[348806693,1736789470388,-500.0,0.00011367,2]
[348806694,1736789470398,-500.0,0.00011367,2]
[348806695,1736789470407,-1130.8,0.00011367,2]
[348806696,1736789470416,-697.9,0.00011367,2]
[348806697,1736789470431,-500.0,0.00011367,2]
[348806698,1736789470441,-399.83,0.00011367,2]
[348806699,1736789470450,-759.61,0.00011367,2]
[348806700,1736789470459,-500.0,0.00011367,2]
[348806701,1736789470469,-500.0,0.00011367,2]
[348806702,1736789470480,-500.0,0.00011367,2]
[348806703,1736789470489,-500.0,0.00011367,2]
[348806704,1736789470498,-500.0,0.00011367,2]
[348806705,1736789470508,-500.0,0.00011367,2]
[348806706,1736789470517,-2741.02,0.00011367,2]
[348806707,1736789470527,-757.35,0.00011367,2]
[348806708,1736789470538,-500.0,0.00011367,2]
[348806709,1736789470548,-317.91462701,0.00011367,2]
[348806710,1736789470558,-703.48,0.00011367,2]
[348806711,1736789470568,-1444.04,0.00011367,2]
[348806712,1736789470577,-500.0,0.00011367,2]
[348806713,1736789470587,-718.2,0.00011367,2]
[348806714,1736789470596,-589.58,0.00011367,2]
[348806715,1736789470605,-3579.12,0.00011367,2]
[348806716,1736789470614,-500.0,0.00011367,2]
[348806717,1736789470623,-500.0,0.00011367,2]
[348806718,1736789470632,-500.0,0.00011367,2]
[348806719,1736789470641,-1062.35,0.00011367,2]
[348806720,1736789470651,-689.6,0.00011367,2]
[348806721,1736789470660,-500.0,0.00011367,2]
[348806722,1736789470669,-500.0,0.00011367,2]
[348806723,1736789470680,-1023.71,0.00011367,2]
[348806724,1736789470689,-629.07,0.00011367,2]
[348806725,1736789470699,-722.38,0.00011367,2]
[348806726,1736789470708,-564.7,0.00011367,2]
[348806727,1736789470718,-768.6,0.00011367,2]
[348806728,1736789470728,-500.0,0.00011367,2]
[348806729,1736789470738,-4003.4,0.00011367,2]
[348806730,1736789470747,-682.62,0.00011367,2]
[348806731,1736789470757,-500.0,0.00011367,2]
[348806732,1736789470766,-862.3,0.00011367,2]
[348806733,1736789470776,-500.0,0.00011367,2]
[348806734,1736789470785,-716.85,0.00011367,2]
[348806735,1736789470795,-1020.95,0.00011367,2]
[348806736,1736789470804,-500.0,0.00011367,2]
[348806737,1736789470814,-680.17,0.00011367,2]
[348806738,1736789470823,-259.6214002,0.00011367,2]
[348806739,1736789470833,-500.0,0.00011367,2]
[348806740,1736789470842,-500.0,0.00011367,2]
[348806741,1736789470851,-661.97,0.00011367,2]
[348806742,1736789470861,-976.49,0.00011367,2]
[348806743,1736789470871,-752.64,0.00011367,2]
[348806744,1736789470881,-1000.0,0.00011367,2]
[348806745,1736789470890,-714.39,0.00011367,2]
[348806746,1736789470899,-500.0,0.00011367,2]
[348806747,1736789470909,-780.26,0.00011367,2]
[348806748,1736789470918,-500.0,0.00011367,2]
[348806749,1736789470930,-500.0,0.00011367,2]
[348806750,1736789470940,-584.45,0.00011367,2]
[348806751,1736789470949,-699.85,0.00011367,2]
[348806752,1736789470959,-500.0,0.00011367,2]
[348806753,1736789470969,-500.0,0.00011367,2]
[348806754,1736789470980,-500.0,0.00011367,2]
[348806755,1736789470990,-1506.6,0.00011368,2]
[348806756,1736789471001,-1460.16,0.00011368,2]
[348806757,1736789471012,-872.27,0.00011368,2]
[348806758,1736789471021,-1766.08,0.00011368,2]
[348806759,1736789471030,-5849.77,0.00011368,2]
[348806760,1736789471040,-429.81509458,0.00011385,2]
[348806761,1736789471051,-201.0,0.00011426,2]
[348806762,1736789471061,-1056.99,0.00011463,2]
[348806763,1736789471071,-500.0,0.00011504,2]
[348806764,1736789471080,-2751.0,0.00011507,2]
[348806765,1736789471090,-1000.0,0.00011523,2]
[348806766,1736789471100,-437.23,0.00011569,2]
[348806767,1736789471111,-1955.14,0.00011569,2]
[348806768,1736789471120,-524.87,0.00011614,2]
[348806769,1736789471130,-1706.58,0.00011614,2]
[348806770,1736789471140,-564.29,0.00011614,2]
[348806771,1736789471150,-728.34,0.00011614,2]
[348806772,1736789471160,-500.0,0.00011625,2]
[348806773,1736789471170,-500.0,0.00011639,2]
[348806774,1736789471179,-500.0,0.00011639,2]
[348806775,1736789471189,-432.58511705,0.00011639,2]
[348806776,1736789471198,-571.87675332,0.00011639,2]
[348806777,1736789471208,-500.0,0.00011639,2]
[348806778,1736789471218,-500.0,0.00011639,2]
[348806779,1736789471228,-500.0,0.00011639,2]
[348806780,1736789471242,-500.0,0.00011639,2]
[348806781,1736789471251,-565.93465827,0.00011639,2]
[348806782,1736789471261,-500.0,0.00011639,2]
[348806783,1736789471272,-500.0,0.00011639,2]
[348806784,1736789471282,-500.0,0.00011639,2]
[348806785,1736789471292,-500.0,0.00011639,2]
[348806786,1736789471303,-500.0,0.00011639,2]
[348806787,1736789471312,-500.0,0.00011639,2]
[348806788,1736789471322,-500.0,0.00011639,2]
[348806789,1736789471334,-177.02,0.00011639,2]
[348806790,1736789471344,-500.0,0.00011639,2]
[348806791,1736789471354,-550.0924056,0.00011639,2]
[348806792,1736789471364,-377.62536835,0.00011639,2]
[348806793,1736789471374,-500.0,0.00011639,2]
[348806794,1736789471384,-572.41,0.00011639,2]
[348806795,1736789471393,-522.88,0.00011639,2]
[348806796,1736789471403,-500.0,0.00011639,2]
[348806797,1736789471413,-500.0,0.00011639,2]
[348806798,1736789471425,-500.0,0.00011639,2]
[348806799,1736789471435,-500.0,0.00011639,2]
[348806800,1736789471444,-500.0,0.00011639,2]
[348806801,1736789471454,-500.0,0.00011639,2]
[348806802,1736789471464,-500.0,0.00011639,2]
[348806803,1736789471474,-500.0,0.00011639,2]
[348806804,1736789471484,-500.0,0.00011639,2]
[348806805,1736789471495,-500.0,0.00011639,2]
[348806806,1736789471505,-500.0,0.00011639,2]
[348806807,1736789471516,-500.0,0.00011639,2]
[348806808,1736789471526,-500.0,0.00011639,2]
[348806809,1736789471536,-500.0,0.00011639,2]
[348806810,1736789471546,-500.0,0.00011639,2]
[348806811,1736789471556,-500.0,0.00011639,2]
[348806812,1736789471565,-500.0,0.00011639,2]
[348806813,1736789471575,-500.0,0.00011639,2]
[348806814,1736789471584,-500.0,0.00011639,2]
[348806815,1736789471593,-500.0,0.00011639,2]
[348806816,1736789471603,-500.0,0.00011639,2]
[348806817,1736789471613,-500.0,0.00011639,2]
[348806818,1736789471623,-500.0,0.00011639,2]
[348806819,1736789471634,-500.0,0.00011639,2]
[348806820,1736789471643,-500.0,0.00011639,2]
[348806821,1736789471654,-500.0,0.00011639,2]
[348806822,1736789471663,-500.0,0.00011639,2]
[348806823,1736789471681,-500.0,0.00011639,2]
[348806824,1736789471691,-500.0,0.00011639,2]
[348806825,1736789471700,-500.0,0.00011639,2]
[348806826,1736789471710,-500.0,0.00011639,2]
[348806827,1736789471724,-500.0,0.00011639,2]
[348806828,1736789471738,-500.0,0.00011639,2]
[348806829,1736789471748,-500.0,0.00011639,2]
[348806830,1736789471758,-500.0,0.00011639,2]
[348806831,1736789471768,-500.0,0.00011639,2]
[348806832,1736789471778,-500.0,0.00011639,2]
[348806833,1736789471788,-500.0,0.00011639,2]
[348806834,1736789471798,-500.0,0.00011639,2]
[348806835,1736789471807,-500.0,0.00011639,2]
[348806836,1736789471816,-500.0,0.00011639,2]
[348806837,1736789471826,-500.0,0.00011639,2]
[348806838,1736789471837,-500.0,0.00011639,2]
[348806839,1736789471847,-500.0,0.00011639,2]
[348806840,1736789471857,-500.0,0.00011639,2]
[348806841,1736789471867,-500.0,0.00011639,2]
[348806842,1736789471876,-1887.52,0.00011639,2]
[348806843,1736789471886,-500.0,0.00011639,2]
[348806844,1736789471895,-500.0,0.00011639,2]
[348806845,1736789471904,-500.0,0.00011639,2]
[348806846,1736789471914,-506.91,0.00011639,2]
[348806847,1736789471926,-500.0,0.00011639,2]
[348806848,1736789471936,-500.0,0.00011639,2]
[348806849,1736789471946,-500.0,0.00011639,2]
[348806850,1736789471956,-500.0,0.00011639,2]
[348806851,1736789471966,-500.0,0.00011639,2]
[348806852,1736789471976,-500.0,0.00011639,2]
[348806853,1736789471986,-500.0,0.00011639,2]
[348806854,1736789471995,-500.0,0.00011639,2]
[348806855,1736789472005,-500.0,0.00011639,2]
[348806856,1736789472016,-500.0,0.00011639,2]
[348806857,1736789472026,-500.0,0.00011639,2]
[348806858,1736789472036,-500.0,0.00011639,2]
[348806859,1736789472046,-500.0,0.00011639,2]
[348806860,1736789472056,-500.0,0.00011639,2]
[348806861,1736789472067,-500.0,0.00011639,2]
[348806862,1736789472077,-500.0,0.00011639,2]
[348806863,1736789472087,-236.13133254,0.00011639,2]
[348806864,1736789472098,-392.33342825,0.00011639,2]
[348806865,1736789472109,-500.0,0.0001164,2]
[348806866,1736789472119,-500.0,0.0001164,2]
[348806867,1736789472131,-515.03,0.0001164,2]
[348806868,1736789472140,-641.14,0.0001164,2]
[348806869,1736789472151,-500.0,0.0001164,2]
[348806870,1736789472161,-550.42,0.0001164,2]
[348806871,1736789472174,-500.0,0.0001164,2]
[348806872,1736789472184,-500.0,0.0001164,2]
[348806873,1736789472193,-500.0,0.0001164,2]
[348806874,1736789472203,-340.14,0.0001164,2]
[348806875,1736789472213,-500.0,0.0001164,2]
[348806876,1736789472222,-500.0,0.0001164,2]
[348806877,1736789472235,-500.0,0.0001164,2]
[348806878,1736789472246,-500.0,0.0001164,2]
[348806879,1736789472256,-371.61849031,0.0001164,2]
[348806880,1736789472266,-500.0,0.0001164,2]
[348806881,1736789472277,-500.0,0.0001164,2]
[348806882,1736789472286,-500.0,0.0001164,2]
[348806883,1736789472295,-519.61,0.0001164,2]
[348806884,1736789472305,-500.0,0.0001164,2]
[348806885,1736789472315,-500.0,0.0001164,2]
[348806886,1736789472325,-504.63,0.0001164,2]
[348806887,1736789472336,-752.85,0.0001164,2]
[348806888,1736789472346,-500.0,0.0001164,2]
[348806889,1736789472358,-500.0,0.0001164,2]
[348806890,1736789472368,-937.69,0.0001164,2]
[348806891,1736789472379,-748.27,0.0001164,2]
[348806892,1736789472389,-188.37,0.0001164,2]
[348806893,1736789472399,-277.85,0.0001164,2]
[348806894,1736789472409,-500.0,0.0001164,2]
[348806895,1736789472418,-919.9,0.0001164,2]
[348806896,1736789472429,-766.36,0.0001164,2]
[348806897,1736789472440,-831.27,0.0001164,2]
[348806898,1736789472450,-652.15,0.0001164,2]
[348806899,1736789472461,-500.0,0.0001164,2]
[348806900,1736789472471,-1618.06,0.0001164,2]
[348806901,1736789472482,-500.0,0.0001164,2]
[348806902,1736789472492,-503.86,0.0001164,2]
[348806903,1736789472502,-500.0,0.0001164,2]
[348806904,1736789472511,-500.0,0.0001164,2]
[348806905,1736789472520,-738.35,0.0001164,2]
[348806906,1736789472530,-602.52,0.0001164,2]
[348806907,1736789472540,-500.0,0.0001164,2]
[348806908,1736789472550,-704.36,0.0001164,2]
[348806909,1736789472560,-500.0,0.0001164,2]
[348806910,1736789472570,-805.11,0.0001164,2]
[348806911,1736789472581,-599.92,0.0001164,2]
[348806912,1736789472591,-562.5,0.0001164,2]
[348806913,1736789472601,-500.0,0.0001164,2]
[348806914,1736789472610,-500.0,0.0001164,2]
[348806915,1736789472619,-1474.42,0.0001164,2]
[348806916,1736789472629,-500.0,0.0001164,2]
[348806917,1736789472639,-1194.18,0.0001164,2]
[348806918,1736789472649,-5242.15,0.0001164,2]
[348806919,1736789472659,-602.8,0.0001164,2]
[348806920,1736789472669,-500.0,0.0001164,2]
[348806921,1736789472680,-596.47,0.0001164,2]
[348806922,1736789472690,-2360.29,0.0001164,2]
[348806923,1736789472700,-1352.23,0.0001164,2]
[348806924,1736789472709,-893.39,0.0001164,2]
[348806925,1736789472719,-500.0,0.0001164,2]
[348806926,1736789472729,-1603.75,0.0001164,2]
[348806927,1736789472739,-500.0,0.0001164,2]
[348806928,1736789472749,-500.0,0.0001164,2]
[348806929,1736789472759,-1295.57,0.0001164,2]
[348806930,1736789472769,-500.0,0.0001164,2]
[348806931,1736789472779,-2161.69,0.0001164,2]
[348806932,1736789472789,-500.0,0.0001164,2]
[348806933,1736789472799,-1828.01,0.0001164,2]
[348806934,1736789472809,-500.0,0.0001164,2]
[348806935,1736789472819,-1024.72,0.0001164,2]
[348806936,1736789472829,-3242.95,0.0001164,2]
[348806937,1736789472838,-500.0,0.0001164,2]
[348806938,1736789472848,-500.0,0.0001164,2]
[348806939,1736789472858,-541.15,0.0001164,2]
[348806940,1736789472868,-500.0,0.0001164,2]
[348806941,1736789472877,-962.13,0.0001164,2]
[348806942,1736789472886,-977.39,0.0001164,2]
[348806943,1736789472896,-3349.73,0.0001164,2]
[348806944,1736789472907,-500.0,0.0001164,2]
[348806945,1736789472917,-500.0,0.0001164,2]
[348806946,1736789472928,-755.384315,0.0001164,2]
[348806947,1736789472938,-1792.63,0.0001164,2]
[348806948,1736789472948,-1992.33,0.0001164,2]
[348806949,1736789472958,-898.56,0.0001164,2]
[348806950,1736789472969,-500.0,0.0001164,2]
[348806951,1736789472979,-2892.25,0.0001164,2]
[348806952,1736789472989,-573.54,0.0001164,2]
[348806953,1736789472999,-562.095232,0.0001164,2]
[348806954,1736789473009,-500.0,0.0001164,2]
[348806955,1736789473019,-692.69,0.0001164,2]
[348806956,1736789473028,-2613.03,0.0001164,2]
[348806957,1736789473038,-720.13,0.0001164,2]
[348806958,1736789473047,-732.19,0.0001164,2]
[348806959,1736789473058,-1361.66,0.0001164,2]
[348806960,1736789473068,-1022.89,0.0001164,2]
[348806961,1736789473078,-626.77,0.0001164,2]
[348806962,1736789473089,-568.68,0.0001164,2]
[348806963,1736789473099,-606.7,0.0001164,2]
[348806964,1736789473110,-500.0,0.0001164,2]
[348806965,1736789473120,-500.0,0.0001164,2]
[348806966,1736789473131,-500.0,0.0001164,2]
[348806967,1736789473140,-500.0,0.0001164,2]
[348806968,1736789473150,-500.0,0.0001164,2]
[348806969,1736789473160,-1699.69,0.0001164,2]
[348806970,1736789473170,-573.82,0.0001164,2]
[348806971,1736789473182,-500.0,0.0001164,2]
[348806972,1736789473192,-506.25,0.0001164,2]
[348806973,1736789473201,-500.0,0.0001164,2]
[348806974,1736789473211,-1255.89,0.00011641,2]
[348806975,1736789473220,-961.31,0.00011641,2]
[348806976,1736789473230,-2512.37,0.00011641,2]
[348806977,1736789473246,-1325.84,0.00011641,2]
[348806978,1736789473256,-1827.85,0.00011641,2]
[348806979,1736789473266,-3096.14,0.00011641,2]
[348806980,1736789473277,-1519.79,0.00011641,2]
[348806981,1736789473286,-500.0,0.00011641,2]
[348806982,1736789473296,-500.0,0.00011641,2]
[348806983,1736789473306,-500.0,0.00011641,2]
[348806984,1736789473315,-3417.73,0.00011641,2]
[348806985,1736789473327,-500.0,0.00011641,2]
[348806986,1736789473337,-500.0,0.00011641,2]
[348806987,1736789473347,-209.57004453,0.00011641,2]
[348806988,1736789473357,-274.75765194,0.00011641,2]
[348806989,1736789473367,-500.0,0.00011641,2]
[348806990,1736789473377,-297.41,0.00011641,2]
[348806991,1736789473387,-500.0,0.00011641,2]
[348806992,1736789473397,-789.75,0.00011641,2]
[348806993,1736789473407,-500.0,0.00011641,2]
[348806994,1736789473418,-552.14,0.00011641,2]
[348806995,1736789473434,-543.34,0.00011641,2]
[348806996,1736789473445,-500.0,0.00011641,2]
[348806997,1736789473455,-500.0,0.00011641,2]
[348806998,1736789473466,-500.0,0.00011641,2]
[348806999,1736789473476,-936.68,0.00011641,2]
[348807000,1736789473486,-500.0,0.00011641,2]
[348807001,1736789473496,-500.0,0.00011641,2]
[348807002,1736789473506,-500.0,0.00011641,2]
[348807003,1736789473516,-548.55,0.00011641,2]
[348807004,1736789473526,-500.0,0.00011641,2]
[348807005,1736789473536,-500.0,0.00011641,2]
[348807006,1736789473546,-500.0,0.00011641,2]
[348807007,1736789473555,-500.0,0.00011641,2]
[348807008,1736789473564,-917.73,0.00011641,2]
[348807009,1736789473574,-500.0,0.00011641,2]
[348807010,1736789473583,-618.14,0.00011641,2]
[348807011,1736789473594,-650.64,0.00011641,2]
[348807012,1736789473603,-1418.5,0.00011641,2]
[348807013,1736789473613,-500.0,0.00011641,2]
[348807014,1736789473623,-500.0,0.00011641,2]
[348807015,1736789473633,-259.22,0.00011641,2]
[348807016,1736789473808,-500.0,0.00011641,2]
[348807017,1736789473819,-742.14,0.00011641,2]
[348807018,1736789473829,-500.0,0.00011641,2]
[348807019,1736789473839,-500.0,0.00011641,2]
[348807020,1736789473848,-1130.8,0.00011641,2]
[348807021,1736789473858,-697.9,0.00011641,2]
[348807022,1736789473869,-500.0,0.00011641,2]
[348807023,1736789473878,-759.61,0.00011641,2]
[348807024,1736789473886,-547.02,0.00011641,2]
[348807025,1736789473896,-500.0,0.00011641,2]
[348807026,1736789473905,-500.0,0.00011641,2]
[348807027,1736789473914,-500.0,0.00011641,2]
[348807028,1736789473926,-559.91,0.00011641,2]
[348807029,1736789473937,-2741.02,0.00011641,2]
[348807030,1736789473947,-757.35,0.00011641,2]
[348807031,1736789473958,-500.0,0.00011641,2]
[348807032,1736789473968,-703.48,0.00011641,2]
[348807033,1736789473978,-1444.04,0.00011641,2]
[348807034,1736789473988,-500.0,0.00011641,2]
[348807035,1736789473998,-718.2,0.00011641,2]
[348807036,1736789474008,-589.58,0.00011641,2]
[348807037,1736789474018,-3579.12,0.00011641,2]
[348807038,1736789474028,-500.0,0.00011641,2]
[348807039,1736789474038,-500.0,0.00011641,2]
[348807040,1736789474048,-500.0,0.00011641,2]
[348807041,1736789474059,-1062.35,0.00011641,2]
[348807042,1736789474070,-689.6,0.00011641,2]
[348807043,1736789474079,-500.0,0.00011641,2]
[348807044,1736789474088,-1023.71,0.00011641,2]
[348807045,1736789474099,-629.07,0.00011641,2]
[348807046,1736789474109,-722.38,0.00011641,2]
[348807047,1736789474119,-564.7,0.00011641,2]
[348807048,1736789474129,-768.6,0.00011641,2]
[348807049,1736789474138,-500.0,0.00011641,2]
[348807050,1736789474147,-682.62,0.00011641,2]
[348807051,1736789474157,-4003.4,0.00011641,2]
[348807052,1736789474167,-500.0,0.00011641,2]
[348807053,1736789474177,-500.0,0.00011641,2]
[348807054,1736789474187,-716.85,0.00011641,2]
[348807055,1736789474196,-1020.95,0.00011641,2]
[348807056,1736789474205,-500.0,0.00011641,2]
[348807057,1736789474215,-680.17,0.00011641,2]
[348807058,1736789474224,-500.0,0.00011641,2]
[348807059,1736789474235,-661.97,0.00011641,2]
[348807060,1736789474246,-976.49,0.00011641,2]
[348807061,1736789474255,-752.64,0.00011641,2]
[348807062,1736789474265,-1000.0,0.00011641,2]
[348807063,1736789474274,-714.39,0.00011641,2]
[348807064,1736789474286,-500.0,0.00011641,2]
[348807065,1736789474296,-780.26,0.00011641,2]
[348807066,1736789474307,-500.0,0.00011641,2]
[348807067,1736789474317,-500.0,0.00011641,2]
[348807068,1736789474328,-584.45,0.00011641,2]
[348807069,1736789474340,-699.85,0.00011641,2]
[348807070,1736789474351,-500.0,0.00011641,2]
[348807071,1736789474361,-1506.6,0.00011642,2]
[348807072,1736789474372,-1460.16,0.00011642,2]
[348807073,1736789474383,-872.27,0.00011642,2]
[348807074,1736789474393,-1766.08,0.00011642,2]
[348807075,1736789474403,-5849.77,0.00011642,2]
[348807076,1736789474414,-166.803,0.0001168,2]
[348807077,1736789474425,-226.0,0.0001175,2]
[348807078,1736789474436,-296.0,0.0001175,2]
[348807079,1736789474446,-500.0,0.00011778,2]
[348807080,1736789474455,-154.999206,0.00011779,3]
[348807081,1736789474465,-771.32,0.00011781,2]
[348807082,1736789474476,-150.03564973,0.00011813,5]
[348807083,1736789474487,-524.87,0.00011888,2]
[348807084,1736789474497,-1706.58,0.00011888,2]
[348807085,1736789474507,-564.29,0.00011888,2]
[348807086,1736789474518,-728.34,0.00011888,2]
[348807087,1736789474528,-156.915755,0.00011897,2]
[348807088,1736789474538,-156.915755,0.00011897,2]
[348807089,1736789474548,-500.0,0.00011899,2]
[348807090,1736789474558,-500.0,0.00011913,2]
[348807091,1736789474568,-500.0,0.00011913,2]
[348807092,1736789474579,-500.0,0.00011913,2]
[348807093,1736789474588,-500.0,0.00011913,2]
[348807094,1736789474598,-504.42082281,0.00011913,2]
[348807095,1736789474608,-500.0,0.00011913,2]
[348807096,1736789474619,-500.0,0.00011913,2]
[348807097,1736789474630,-500.0,0.00011913,2]
[348807098,1736789474641,-500.0,0.00011913,2]
[348807099,1736789474651,-500.0,0.00011913,2]
[348807100,1736789474661,-500.0,0.00011913,2]
[348807101,1736789474671,-500.0,0.00011913,2]
[348807102,1736789474682,-483.61,0.00011913,2]
[348807103,1736789474692,-500.0,0.00011913,2]
[348807104,1736789474703,-500.0,0.00011913,2]
[348807105,1736789474713,-500.0,0.00011913,2]
[348807106,1736789474722,-500.0,0.00011913,2]
[348807107,1736789474733,-500.0,0.00011913,2]
[348807108,1736789474743,-526.48,0.00011913,2]
[348807109,1736789474753,-500.0,0.00011913,2]
[348807110,1736789474763,-500.0,0.00011913,2]
[348807111,1736789474773,-457.79032899,0.00011913,2]
[348807112,1736789474784,-500.0,0.00011913,2]
[348807113,1736789474794,-500.0,0.00011913,2]
[348807114,1736789474804,-500.0,0.00011913,2]
[348807115,1736789474814,-500.0,0.00011913,2]
[348807116,1736789474824,-500.0,0.00011913,2]
[348807117,1736789474833,-500.0,0.00011913,2]
[348807118,1736789474843,-500.0,0.00011913,2]
[348807119,1736789474852,-500.0,0.00011913,2]
[348807120,1736789474861,-500.0,0.00011913,2]
[348807121,1736789474872,-500.0,0.00011913,2]
[348807122,1736789474882,-500.0,0.00011913,2]
[348807123,1736789474893,-500.0,0.00011913,2]
[348807124,1736789474904,-500.0,0.00011913,2]
[348807125,1736789474913,-1887.52,0.00011913,2]
[348807126,1736789474923,-500.0,0.00011913,2]
[348807127,1736789474933,-500.0,0.00011913,2]
[348807128,1736789474943,-500.0,0.00011913,2]
[348807129,1736789474953,-506.91,0.00011913,2]
[348807130,1736789474963,-500.0,0.00011913,2]
[348807131,1736789474974,-500.0,0.00011913,2]
[348807132,1736789474983,-500.0,0.00011913,2]
[348807133,1736789474993,-547.95,0.00011913,2]
[348807134,1736789475003,-271.01,0.00011913,2]
[348807135,1736789475013,-500.0,0.00011913,2]
[348807136,1736789475022,-181.17113599,0.00011913,2]
[348807137,1736789475032,-500.0,0.00011913,2]
[348807138,1736789475043,-241.94,0.00011913,2]
[348807139,1736789475053,-214.81980534,0.00011913,2]
[348807140,1736789475063,-500.0,0.00011914,2]
[348807141,1736789475072,-484.09,0.00011914,2]
[348807142,1736789475082,-515.03,0.00011914,2]
[348807143,1736789475092,-641.14,0.00011914,2]
[348807144,1736789475102,-591.32,0.00011914,2]
[348807145,1736789475113,-550.42,0.00011914,2]
[348807146,1736789475123,-500.0,0.00011914,2]
[348807147,1736789475132,-500.0,0.00011914,2]
[348807148,1736789475142,-276.8505172,0.00011914,2]
[348807149,1736789475152,-500.0,0.00011914,2]
[348807150,1736789475162,-500.0,0.00011914,2]
[348807151,1736789475174,-500.0,0.00011914,2]
[348807152,1736789475184,-500.0,0.00011914,2]
[348807153,1736789475194,-500.0,0.00011914,2]
[348807154,1736789475204,-500.0,0.00011914,2]
[348807155,1736789475214,-403.63,0.00011914,2]
[348807156,1736789475224,-519.61,0.00011914,2]
[348807157,1736789475236,-500.0,0.00011914,2]
[348807158,1736789475248,-500.0,0.00011914,2]
[348807159,1736789475258,-504.63,0.00011914,2]
[348807160,1736789475267,-752.85,0.00011914,2]
[348807161,1736789475279,-500.0,0.00011914,2]
[348807162,1736789475289,-575.5334385,0.00011914,2]
[348807163,1736789475299,-937.69,0.00011914,2]
[348807164,1736789475311,-748.27,0.00011914,2]
[348807165,1736789475321,-500.0,0.00011914,2]
[348807166,1736789475332,-919.9,0.00011914,2]
[348807167,1736789475342,-766.36,0.00011914,2]
[348807168,1736789475353,-831.27,0.00011914,2]
[348807169,1736789475362,-652.15,0.00011914,2]
[348807170,1736789475373,-500.0,0.00011914,2]
[348807171,1736789475383,-1618.06,0.00011914,2]
[348807172,1736789475393,-500.0,0.00011914,2]
[348807173,1736789475403,-503.86,0.00011914,2]